fUSD/lending_fUSD_20250107
["ID","MTS","AMOUNT","RATE_DAILY","PERIOD"]
[348022783,1736268666984,-500.0,0.00010417,2]
[348022784,1736268666994,-500.0,0.00010417,2]
[348022785,1736268667004,-500.0,0.00010417,2]
[348022786,1736268667014,-500.0,0.00010417,2]
[348022787,1736268667023,-500.0,0.00010417,2]
[348022788,1736268667032,-500.0,0.00010417,2]
[348022789,1736268667041,-500.0,0.00010417,2]
[348022790,1736268667051,-500.0,0.00010417,2]
[348022791,1736268667060,-500.0,0.00010417,2]
[348022792,1736268667070,-500.0,0.00010417,2]
[348022793,1736268667079,-500.0,0.00010417,2]
[348022794,1736268667089,-538.96,0.00010417,2]
[348022795,1736268667098,-500.0,0.00010417,2]
[348022796,1736268667107,-500.0,0.00010417,2]
[348022797,1736268667117,-440.29873904,0.00010417,2]
[348022798,1736268667126,-500.0,0.00010417,2]
[348022799,1736268667135,-500.0,0.00010417,2]
[348022800,1736268667145,-500.0,0.00010417,2]
[348022801,1736268667154,-845.74,0.00010417,2]
[348022802,1736268667164,-500.0,0.00010417,2]
[348022803,1736268667173,-500.0,0.00010417,2]
[348022804,1736268667183,-500.0,0.00010417,2]
[348022805,1736268667193,-500.0,0.00010417,2]
[348022806,1736268667202,-592.86,0.00010417,2]
[348022807,1736268667211,-500.0,0.00010417,2]
[348022808,1736268667221,-600.81,0.00010417,2]
[348022809,1736268667232,-500.0,0.00010417,2]
[348022810,1736268667242,-500.0,0.00010417,2]
[348022811,1736268667251,-519.72,0.00010417,2]
[348022812,1736268667260,-500.0,0.00010417,2]
[348022813,1736268667270,-819.07,0.00010417,2]
[348022814,1736268667279,-500.0,0.00010417,2]
[348022815,1736268667289,-518.34,0.00010417,2]
[348022816,1736268667298,-616.88,0.00010417,2]
[348022817,1736268667307,-500.0,0.00010417,2]
[348022818,1736268667316,-500.0,0.00010417,2]
[348022819,1736268667325,-500.0,0.00010417,2]
[348022820,1736268667335,-500.0,0.00010417,2]
[348022821,1736268667344,-500.0,0.00010417,2]
[348022822,1736268667353,-500.0,0.00010417,2]
[348022823,1736268667363,-500.0,0.00010417,2]
[348022824,1736268667372,-500.0,0.00010417,2]
[348022825,1736268667383,-500.0,0.00010417,2]
[348022826,1736268667392,-500.0,0.00010417,2]
[348022827,1736268667402,-500.0,0.00010417,2]
[348022828,1736268667412,-500.0,0.00010417,2]
[348022829,1736268667421,-500.0,0.00010417,2]
[348022830,1736268667431,-870.58,0.00010417,2]
[348022831,1736268667440,-687.56,0.00010417,2]
[348022832,1736268667450,-500.0,0.00010417,2]
[348022833,1736268667459,-791.82,0.00010417,2]
[348022834,1736268667469,-500.0,0.00010417,2]
[348022835,1736268667479,-500.0,0.00010417,2]
[348022836,1736268667492,-500.0,0.00010417,2]
[348022837,1736268667502,-500.0,0.00010417,2]
[348022838,1736268667511,-500.0,0.00010417,2]
[348022839,1736268667521,-500.0,0.00010417,2]
[348022840,1736268667531,-927.26,0.00010417,2]
[348022841,1736268667540,-558.34,0.00010417,2]
[348022842,1736268667553,-500.0,0.00010417,2]
[348022843,1736268667563,-500.0,0.00010417,2]
[348022844,1736268667572,-655.3,0.00010417,2]
[348022845,1736268667582,-557.31,0.00010417,2]
[348022846,1736268667592,-656.36,0.00010417,2]
[348022847,1736268667601,-500.0,0.00010417,2]
[348022848,1736268667611,-918.28,0.00010417,2]
[348022849,1736268667621,-582.18,0.00010417,2]
[348022850,1736268667633,-500.0,0.00010417,2]
[348022851,1736268667643,-685.99,0.00010417,2]
[348022852,1736268667653,-500.0,0.00010417,2]
[348022853,1736268667663,-583.44,0.00010417,2]
[348022854,1736268667672,-500.0,0.00010417,2]
[348022855,1736268667682,-641.46,0.00010417,2]
[348022856,1736268667692,-612.42,0.00010417,2]
[348022857,1736268667702,-500.0,0.00010417,2]
[348022858,1736268667711,-520.7,0.00010417,2]
[348022859,1736268667721,-500.0,0.00010417,2]
[348022860,1736268667730,-500.0,0.00010417,2]
[348022861,1736268667741,-500.0,0.00010417,2]
[348022862,1736268667751,-500.0,0.00010417,2]
[348022863,1736268667761,-505.14,0.00010417,2]
[348022864,1736268667771,-500.0,0.00010417,2]
[348022865,1736268667781,-500.0,0.00010417,2]
[348022866,1736268667791,-735.13,0.00010417,2]
[348022867,1736268667802,-500.0,0.00010417,2]
[348022868,1736268667811,-512.9,0.00010417,2]
[348022869,1736268667820,-500.0,0.00010417,2]
[348022870,1736268667830,-500.0,0.00010417,2]
[348022871,1736268667839,-500.0,0.00010417,2]
[348022872,1736268667848,-500.0,0.00010417,2]
[348022873,1736268667858,-500.0,0.00010417,2]
[348022874,1736268667867,-500.0,0.00010417,2]
[348022875,1736268667877,-597.15,0.00010417,2]
[348022876,1736268667887,-921.38,0.00010417,2]
[348022877,1736268667897,-500.0,0.00010417,2]
[348022878,1736268667906,-500.0,0.00010417,2]
[348022879,1736268667915,-500.0,0.00010417,2]
[348022880,1736268667925,-851.41,0.00010417,2]
[348022881,1736268667934,-500.0,0.00010417,2]
[348022882,1736268667943,-500.0,0.00010417,2]
[348022883,1736268667953,-500.0,0.00010417,2]
[348022884,1736268667962,-500.0,0.00010417,2]
[348022885,1736268667971,-500.0,0.00010417,2]
[348022886,1736268667981,-500.0,0.00010417,2]
[348022887,1736268667992,-500.0,0.00010417,2]
[348022888,1736268668002,-500.0,0.00010417,2]
[348022889,1736268668011,-538.02,0.00010417,2]
[348022890,1736268668020,-526.88,0.00010417,2]
[348022891,1736268668030,-969.14,0.00010417,2]
[348022892,1736268668039,-500.0,0.00010417,2]
[348022893,1736268668049,-850.4,0.00010417,2]
[348022894,1736268668058,-500.0,0.00010417,2]
[348022895,1736268668067,-500.0,0.00010417,2]
[348022896,1736268668076,-500.0,0.00010417,2]
[348022897,1736268668086,-1025.87,0.00010417,2]
[348022898,1736268668096,-500.0,0.00010417,2]
[348022899,1736268668106,-877.47,0.00010417,2]
[348022900,1736268668115,-500.0,0.00010417,2]
[348022901,1736268668125,-500.0,0.00010417,2]
[348022902,1736268668135,-615.53,0.00010417,2]
[348022903,1736268668147,-500.0,0.00010417,2]
[348022904,1736268668157,-500.0,0.00010417,2]
[348022905,1736268668167,-500.0,0.00010417,2]
[348022906,1736268668176,-590.64,0.00010417,2]
[348022907,1736268668186,-500.0,0.00010417,2]
[348022908,1736268668195,-500.0,0.00010417,2]
[348022909,1736268668205,-585.59,0.00010417,2]
[348022910,1736268668214,-500.0,0.00010417,2]
[348022911,1736268668223,-646.69,0.00010417,2]
[348022912,1736268668234,-500.0,0.00010417,2]
[348022913,1736268668243,-500.0,0.00010417,2]
[348022914,1736268668253,-387.45,0.00010475,2]
[348022915,1736268668263,-999.99,0.00010475,2]
[348022916,1736268668272,-15287.8,0.00010475,2]
[348022917,1736268668282,-299.99,0.00010475,2]
[348022918,1736268668291,-3296.19,0.00010475,2]
[348022919,1736268668301,-1378.55,0.00010475,2]
[348022920,1736268668311,-150.99,0.00010475,2]
[348022921,1736268668320,-1002.72,0.00010477,2]
[348022922,1736268668330,-151.0,0.00010658,2]
[348022923,1736268668340,-500.0,0.00010681,2]
[348022924,1736268668350,-500.0,0.00010681,2]
[348022925,1736268668359,-3599.28,0.00010682,2]
[348022926,1736268668368,-3449.31,0.00010682,2]
[348022927,1736268668378,-1127.87,0.00010682,2]
[348022928,1736268668387,-1127.29,0.00010682,2]
[348022929,1736268668396,-1080.32,0.00010682,2]
[348022930,1736268668405,-2140.99,0.00010682,2]
[348022931,1736268668415,-1743.43,0.00010682,2]
[348022932,1736268668424,-500.0,0.00010682,2]
[348022933,1736268668434,-4639.5,0.00010682,2]
[348022934,1736268668444,-3610.9,0.00010682,2]
[348022935,1736268668453,-734.32,0.00010682,2]
[348022936,1736268668463,-500.0,0.00010682,2]
[348022937,1736268668472,-500.0,0.00010682,2]
[348022938,1736268668483,-612.11,0.00010682,2]
[348022939,1736268668492,-500.0,0.00010682,2]
[348022940,1736268668502,-1544.38,0.00010682,2]
[348022941,1736268668511,-850.81,0.00010682,2]
[348022942,1736268668521,-500.0,0.00010682,2]
[348022943,1736268668530,-500.0,0.00010682,2]
[348022944,1736268668539,-662.0,0.00010682,2]
[348022945,1736268668549,-747.67,0.00010682,2]
[348022946,1736268668565,-500.0,0.00010682,2]
[348022947,1736268668574,-772.19,0.00010682,2]
[348022948,1736268668584,-588.87,0.00010682,2]
[348022949,1736268668593,-2961.16,0.00010682,2]
[348022950,1736268668602,-590.95,0.00010682,2]
[348022951,1736268668611,-774.32,0.00010682,2]
[348022952,1736268668620,-655.07,0.00010682,2]
[348022953,1736268668630,-500.0,0.00010682,2]
[348022954,1736268668640,-506.74,0.00010682,2]
[348022955,1736268668649,-958.33,0.00010682,2]
[348022956,1736268668658,-500.0,0.00010682,2]
[348022957,1736268668667,-956.06,0.00010682,2]
[348022958,1736268668677,-503.25,0.00010682,2]
[348022959,1736268668687,-939.96,0.00010682,2]
[348022960,1736268668696,-500.0,0.00010682,2]
[348022961,1736268668706,-1092.85,0.00010682,2]
[348022962,1736268668716,-1214.95,0.00010682,2]
[348022963,1736268668725,-500.0,0.00010682,2]
[348022964,1736268668736,-500.0,0.00010682,2]
[348022965,1736268668745,-500.0,0.00010682,2]
[348022966,1736268668759,-623.76,0.00010682,2]
[348022967,1736268668770,-1114.33,0.00010682,2]
[348022968,1736268668780,-500.0,0.00010682,2]
[348022969,1736268668790,-679.63,0.00010682,2]
[348022970,1736268668800,-527.31,0.00010682,2]
[348022971,1736268668810,-1307.24,0.00010682,2]
[348022972,1736268668819,-859.28,0.00010682,2]
[348022973,1736268668829,-1688.86,0.00010682,2]
[348022974,1736268668839,-2597.12,0.00010682,2]
[348022975,1736268668848,-2164.26,0.00010682,2]
[348022976,1736268668857,-917.21,0.00010682,2]
[348022977,1736268668866,-1267.48,0.00010682,2]
[348022978,1736268668876,-5884.97,0.00010682,2]
[348022979,1736268668885,-1401.08,0.00010682,2]
[348022980,1736268668895,-1512.74,0.00010682,2]
[348022981,1736268668904,-886.66,0.00010683,2]
[348022982,1736268668913,-2097.97,0.00010683,2]
[348022983,1736268668923,-500.0,0.00010683,2]
[348022984,1736268668932,-1311.27,0.00010683,2]
[348022985,1736268668941,-1111.46,0.00010683,2]
[348022986,1736268668950,-531.84,0.00010683,2]
[348022987,1736268668959,-2273.0,0.00010683,2]
[348022988,1736268668969,-1028.58,0.00010683,2]
[348022989,1736268668978,-1591.44,0.00010683,2]
[348022990,1736268668994,-997.13,0.00010683,2]
[348022991,1736268669004,-2714.28,0.00010683,2]
[348022992,1736268669013,-1972.55,0.00010683,2]
[348022993,1736268669023,-500.0,0.00010689,2]
[348022994,1736268669034,-1321.84,0.00010689,2]
[348022995,1736268669043,-817.02,0.00010689,2]
[348022996,1736268669052,-527.09926923,0.0001069,2]
[348022997,1736268669062,-556.07,0.0001069,2]
[348022998,1736268669071,-850.62,0.0001069,2]
[348022999,1736268669081,-500.0,0.0001069,2]
[348023000,1736268669090,-500.0,0.0001069,2]
[348023001,1736268669100,-590.0,0.0001069,2]
[348023002,1736268669110,-500.0,0.0001069,2]
[348023003,1736268669119,-733.92,0.0001069,2]
[348023004,1736268669129,-836.91,0.0001069,2]
[348023005,1736268669138,-722.53,0.0001069,2]
[348023006,1736268669148,-500.0,0.0001069,2]
[348023007,1736268669158,-897.94,0.0001069,2]
[348023008,1736268669169,-500.0,0.0001069,2]
[348023009,1736268669179,-500.0,0.0001069,2]
[348023010,1736268669254,-500.0,0.0001069,2]
[348023011,1736268669264,-500.0,0.0001069,2]
[348023012,1736268669274,-500.0,0.0001069,2]
[348023013,1736268669283,-797.59,0.0001069,2]
[348023014,1736268669293,-593.4,0.0001069,2]
[348023015,1736268669303,-500.0,0.0001069,2]
[348023016,1736268669311,-500.0,0.0001069,2]
[348023017,1736268669321,-500.0,0.0001069,2]
[348023018,1736268669331,-910.72,0.0001069,2]
[348023019,1736268669340,-519.37,0.0001069,2]
[348023020,1736268669350,-812.74,0.0001069,2]
[348023021,1736268669360,-500.0,0.0001069,2]
[348023022,1736268669369,-531.28,0.0001069,2]
[348023023,1736268669379,-500.0,0.0001069,2]
[348023024,1736268669390,-528.34,0.0001069,2]
[348023025,1736268669399,-1325.98,0.0001069,2]
[348023026,1736268669409,-826.1,0.0001069,2]
[348023027,1736268669418,-500.0,0.0001069,2]
[348023028,1736268669428,-500.0,0.0001069,2]
[348023029,1736268669438,-582.94,0.0001069,2]
[348023030,1736268669447,-960.33,0.0001069,2]
[348023031,1736268669458,-749.9,0.0001069,2]
[348023032,1736268669467,-500.0,0.0001069,2]
[348023033,1736268669477,-824.34,0.0001069,2]
[348023034,1736268669489,-500.0,0.0001069,2]
[348023035,1736268669499,-557.29,0.0001069,2]
[348023036,1736268669509,-1090.09,0.0001069,2]
[348023037,1736268669519,-663.62,0.0001069,2]
[348023038,1736268669529,-557.55,0.0001069,2]
[348023039,1736268669539,-500.0,0.0001069,2]
[348023040,1736268669550,-500.0,0.0001069,2]
[348023041,1736268669563,-500.0,0.0001069,2]
[348023042,1736268669572,-1547.89,0.0001069,2]
[348023043,1736268669582,-500.0,0.0001069,2]
[348023044,1736268669593,-913.99,0.0001069,2]
[348023045,1736268669604,-500.0,0.0001069,2]
[348023046,1736268669614,-500.0,0.0001069,2]
[348023047,1736268669623,-582.8,0.0001069,2]
[348023048,1736268669634,-500.0,0.0001069,2]
[348023049,1736268669645,-735.69,0.0001069,2]
[348023050,1736268669654,-548.74,0.0001069,2]
[348023051,1736268669665,-500.0,0.0001069,2]
[348023052,1736268669674,-567.82,0.0001069,2]
[348023053,1736268669684,-429.4043226,0.0001069,2]
[348023054,1736268669694,-609.14,0.0001069,2]
[348023055,1736268669703,-853.91,0.0001069,2]
[348023056,1736268669713,-500.0,0.0001069,2]
[348023057,1736268669724,-500.0,0.0001069,2]
[348023058,1736268669734,-553.12,0.0001069,2]
[348023059,1736268669743,-1230.46,0.0001069,2]
[348023060,1736268669755,-863.2,0.0001069,2]
[348023061,1736268669765,-531.05,0.0001069,2]
[348023062,1736268669776,-500.0,0.0001069,2]
[348023063,1736268669785,-500.0,0.0001069,2]
[348023064,1736268669795,-500.0,0.0001069,2]
[348023065,1736268669805,-773.27,0.0001069,2]
[348023066,1736268669815,-831.05,0.0001069,2]
[348023067,1736268669824,-2392.33,0.0001069,2]
[348023068,1736268669833,-912.02,0.0001069,2]
[348023069,1736268669843,-514.77,0.0001069,2]
[348023070,1736268669852,-1029.27,0.0001069,2]
[348023071,1736268669862,-1494.48,0.0001069,2]
[348023072,1736268669871,-500.0,0.0001069,2]
[348023073,1736268669881,-500.0,0.0001069,2]
[348023074,1736268669890,-1004.88,0.0001069,2]
[348023075,1736268669899,-858.75,0.0001069,2]
[348023076,1736268669908,-2127.93,0.0001069,2]
[348023077,1736268669918,-1358.1,0.0001069,2]
[348023078,1736268669927,-2342.11,0.0001069,2]
[348023079,1736268669937,-539.24,0.0001069,2]
[348023080,1736268669948,-609.78,0.0001069,2]
[348023081,1736268669957,-1333.64,0.0001069,2]
[348023082,1736268669967,-2822.03,0.0001069,2]
[348023083,1736268669977,-602.54,0.0001069,2]
[348023084,1736268669988,-1190.44,0.0001069,2]
[348023085,1736268669998,-500.0,0.0001069,2]
[348023086,1736268670009,-1051.54,0.0001069,2]
[348023087,1736268670019,-793.26,0.0001069,2]
[348023088,1736268670028,-1546.56,0.0001069,2]
[348023089,1736268670038,-722.34,0.0001069,2]
[348023090,1736268670047,-1149.51,0.0001069,2]
[348023091,1736268670057,-1887.44,0.0001069,2]
[348023092,1736268670066,-375.2,0.0001069,2]
[348023093,1736268670076,-865.45,0.0001069,2]
[348023094,1736268670085,-500.0,0.0001069,2]
[348023095,1736268670094,-807.88,0.0001069,2]
[348023096,1736268670104,-910.92,0.0001069,2]
[348023097,1736268670114,-198.02,0.0001069,2]
[348023098,1736268670124,-500.0,0.0001069,2]
[348023099,1736268670133,-500.0,0.0001069,2]
[348023100,1736268670143,-1777.29,0.0001069,2]
[348023101,1736268670154,-500.0,0.0001069,2]
[348023102,1736268670164,-5860.4,0.0001069,2]
[348023103,1736268670174,-500.0,0.0001069,2]
[348023104,1736268670185,-757.84,0.0001069,2]
[348023105,1736268670195,-706.99,0.0001069,2]
[348023106,1736268670205,-500.0,0.0001069,2]
[348023107,1736268670214,-1001.12,0.0001069,2]
[348023108,1736268670224,-218.463418,0.0001069,2]
[348023109,1736268670236,-2561.02,0.0001069,2]
[348023110,1736268670246,-500.0,0.0001069,2]
[348023111,1736268670255,-1084.58,0.0001069,2]
[348023112,1736268670266,-4263.82,0.0001069,2]
[348023113,1736268670275,-1460.17,0.0001069,2]
[348023114,1736268670285,-500.0,0.0001069,2]
[348023115,1736268670295,-636.2,0.0001069,2]
[348023116,1736268670304,-233.574732,0.0001069,2]
[348023117,1736268670314,-1616.76,0.0001069,2]
[348023118,1736268670323,-500.0,0.0001069,2]
[348023119,1736268670333,-2923.63,0.0001069,2]
[348023120,1736268670342,-1003.09,0.0001069,2]
[348023121,1736268670351,-942.56,0.0001069,2]
[348023122,1736268670362,-628.46,0.0001069,2]
[348023123,1736268670371,-160.150602,0.0001069,2]
[348023124,1736268670381,-592.62,0.0001069,2]
[348023125,1736268670390,-500.0,0.0001069,2]
[348023126,1736268670399,-2206.35,0.0001069,2]
[348023127,1736268670409,-1217.32,0.0001069,2]
[348023128,1736268670417,-500.0,0.0001069,2]
[348023129,1736268670427,-4374.14,0.0001069,2]
[348023130,1736268670436,-4714.17,0.0001069,2]
[348023131,1736268670450,-500.0,0.0001069,2]
[348023132,1736268670460,-779.65,0.0001069,2]
[348023133,1736268670469,-544.8,0.0001069,2]
[348023134,1736268670478,-2901.84,0.0001069,2]
[348023135,1736268670491,-794.55,0.0001069,2]
[348023136,1736268670501,-884.2,0.0001069,2]
[348023137,1736268670511,-2312.21,0.0001069,2]
[348023138,1736268670521,-500.0,0.0001069,2]
[348023139,1736268670531,-779.93,0.0001069,2]
[348023140,1736268670541,-1059.63,0.0001069,2]
[348023141,1736268670555,-500.0,0.0001069,2]
[348023142,1736268670565,-500.0,0.0001069,2]
[348023143,1736268670575,-500.0,0.0001069,2]
[348023144,1736268670585,-604.36,0.0001069,2]
[348023145,1736268670595,-1153.17,0.0001069,2]
[348023146,1736268670605,-1870.96,0.0001069,2]
[348023147,1736268670615,-559.47,0.0001069,2]
[348023148,1736268670625,-782.74,0.0001069,2]
[348023149,1736268670635,-500.0,0.0001069,2]
[348023150,1736268670645,-595.86,0.0001069,2]
[348023151,1736268670654,-1083.61,0.0001069,2]
[348023152,1736268670664,-500.0,0.0001069,2]
[348023153,1736268670674,-1115.91,0.0001069,2]
[348023154,1736268670684,-715.2,0.0001069,2]
[348023155,1736268670694,-500.0,0.0001069,2]
[348023156,1736268670704,-818.1,0.0001069,2]
[348023157,1736268670713,-500.0,0.0001069,2]
[348023158,1736268670722,-500.0,0.00010691,2]
[348023159,1736268670734,-500.0,0.00010691,2]
[348023160,1736268670743,-500.0,0.00010691,2]
[348023161,1736268670756,-500.0,0.00010691,2]
[348023162,1736268670766,-500.0,0.00010691,2]
[348023163,1736268670776,-500.0,0.00010691,2]
[348023164,1736268670786,-533.91,0.00010691,2]
[348023165,1736268670797,-500.0,0.00010691,2]
[348023166,1736268670807,-500.0,0.00010691,2]
[348023167,1736268670817,-500.0,0.00010691,2]
[348023168,1736268670826,-500.0,0.00010691,2]
[348023169,1736268670835,-500.0,0.00010691,2]
[348023170,1736268670844,-500.0,0.00010691,2]
[348023171,1736268670854,-500.0,0.00010691,2]
[348023172,1736268670863,-500.0,0.00010691,2]
[348023173,1736268670873,-500.0,0.00010691,2]
[348023174,1736268670883,-500.0,0.00010691,2]
[348023175,1736268670893,-500.0,0.00010691,2]
[348023176,1736268670902,-500.0,0.00010691,2]
[348023177,1736268670912,-500.0,0.00010691,2]
[348023178,1736268670921,-538.96,0.00010691,2]
[348023179,1736268670930,-500.0,0.00010691,2]
[348023180,1736268670940,-500.0,0.00010691,2]
[348023181,1736268670949,-500.0,0.00010691,2]
[348023182,1736268670958,-500.0,0.00010691,2]
[348023183,1736268670968,-500.0,0.00010691,2]
[348023184,1736268670977,-845.74,0.00010691,2]
[348023185,1736268670987,-500.0,0.00010691,2]
[348023186,1736268670996,-500.0,0.00010691,2]
[348023187,1736268671005,-500.0,0.00010691,2]
[348023188,1736268671014,-500.0,0.00010691,2]
[348023189,1736268671023,-592.86,0.00010691,2]
[348023190,1736268671033,-500.0,0.00010691,2]
[348023191,1736268671042,-600.81,0.00010691,2]
[348023192,1736268671052,-500.0,0.00010691,2]
[348023193,1736268671061,-500.0,0.00010691,2]
[348023194,1736268671071,-519.72,0.00010691,2]
[348023195,1736268671080,-500.0,0.00010691,2]
[348023196,1736268671090,-819.07,0.00010691,2]
[348023197,1736268671099,-500.0,0.00010691,2]
[348023198,1736268671108,-518.34,0.00010691,2]
[348023199,1736268671117,-616.88,0.00010691,2]
[348023200,1736268671127,-500.0,0.00010691,2]
[348023201,1736268671137,-500.0,0.00010691,2]
[348023202,1736268671147,-500.0,0.00010691,2]
[348023203,1736268671156,-500.0,0.00010691,2]
[348023204,1736268671166,-500.0,0.00010691,2]
[348023205,1736268671175,-500.0,0.00010691,2]
[348023206,1736268671185,-500.0,0.00010691,2]
[348023207,1736268671194,-500.0,0.00010691,2]
[348023208,1736268671204,-500.0,0.00010691,2]
[348023209,1736268671214,-500.0,0.00010691,2]
[348023210,1736268671224,-500.0,0.00010691,2]
[348023211,1736268671235,-500.0,0.00010691,2]
[348023212,1736268671245,-500.0,0.00010691,2]
[348023213,1736268671254,-870.58,0.00010691,2]
[348023214,1736268671264,-687.56,0.00010691,2]
[348023215,1736268671273,-500.0,0.00010691,2]
[348023216,1736268671282,-791.82,0.00010691,2]
[348023217,1736268671292,-500.0,0.00010691,2]
[348023218,1736268671302,-500.0,0.00010691,2]
[348023219,1736268671311,-500.0,0.00010691,2]
[348023220,1736268671321,-235.79944571,0.00010691,2]
[348023221,1736268671331,-500.0,0.00010691,2]
[348023222,1736268671340,-500.0,0.00010691,2]
[348023223,1736268671350,-927.26,0.00010691,2]
[348023224,1736268671360,-558.34,0.00010691,2]
[348023225,1736268671370,-500.0,0.00010691,2]
[348023226,1736268671380,-500.0,0.00010691,2]
[348023227,1736268671389,-655.3,0.00010691,2]
[348023228,1736268671399,-557.31,0.00010691,2]
[348023229,1736268671409,-656.36,0.00010691,2]
[348023230,1736268671419,-500.0,0.00010691,2]
[348023231,1736268671428,-918.28,0.00010691,2]
[348023232,1736268671438,-582.18,0.00010691,2]
[348023233,1736268671448,-500.0,0.00010691,2]
[348023234,1736268671458,-685.99,0.00010691,2]
[348023235,1736268671468,-500.0,0.00010691,2]
[348023236,1736268671478,-583.44,0.00010691,2]
[348023237,1736268671490,-500.0,0.00010691,2]
[348023238,1736268671501,-641.46,0.00010691,2]
[348023239,1736268671511,-612.42,0.00010691,2]
[348023240,1736268671523,-500.0,0.00010691,2]
[348023241,1736268671534,-520.7,0.00010691,2]
[348023242,1736268671544,-500.0,0.00010691,2]
[348023243,1736268671556,-500.0,0.00010691,2]
[348023244,1736268671567,-500.0,0.00010691,2]
[348023245,1736268671577,-500.0,0.00010691,2]
[348023246,1736268671587,-505.14,0.00010691,2]
[348023247,1736268671597,-500.0,0.00010691,2]
[348023248,1736268671607,-500.0,0.00010691,2]
[348023249,1736268671618,-735.13,0.00010691,2]
[348023250,1736268671630,-500.0,0.00010691,2]
[348023251,1736268671641,-512.9,0.00010691,2]
[348023252,1736268671651,-500.0,0.00010691,2]
[348023253,1736268671661,-500.0,0.00010691,2]
[348023254,1736268671672,-500.0,0.00010691,2]
[348023255,1736268671682,-500.0,0.00010691,2]
[348023256,1736268671691,-500.0,0.00010691,2]
[348023257,1736268671702,-500.0,0.00010691,2]
[348023258,1736268671713,-597.15,0.00010691,2]
[348023259,1736268671724,-921.38,0.00010691,2]
[348023260,1736268671736,-343.18,0.00010691,2]
[348023261,1736268671746,-500.0,0.00010691,2]
[348023262,1736268671758,-500.0,0.00010691,2]
[348023263,1736268671768,-851.41,0.00010691,2]
[348023264,1736268671778,-500.0,0.00010691,2]
[348023265,1736268671788,-500.0,0.00010691,2]
[348023266,1736268671798,-500.0,0.00010691,2]
[348023267,1736268671808,-500.0,0.00010691,2]
[348023268,1736268671818,-500.0,0.00010691,2]
[348023269,1736268671828,-500.0,0.00010691,2]
[348023270,1736268671838,-500.0,0.00010691,2]
[348023271,1736268671847,-500.0,0.00010691,2]
[348023272,1736268671858,-538.02,0.00010691,2]
[348023273,1736268671867,-526.88,0.00010691,2]
[348023274,1736268671878,-969.14,0.00010691,2]
[348023275,1736268671887,-500.0,0.00010691,2]
[348023276,1736268671897,-850.4,0.00010691,2]
[348023277,1736268671907,-500.0,0.00010691,2]
[348023278,1736268671916,-500.0,0.00010691,2]
[348023279,1736268671927,-500.0,0.00010691,2]
[348023280,1736268671936,-500.0,0.00010691,2]
[348023281,1736268671946,-1025.87,0.00010691,2]
[348023282,1736268671956,-877.47,0.00010691,2]